Workbook

Sheet Invoere
B2: Invoere
B5: Fisiese Gegewens | E5: Verander asseblief die waardes na gelang van u boerdery omstandighede
B6: Produktiewe Koeie (Aantal) | C6: 100
B7: Persentasie Bulle | C7: 3%
B8: Vervangings Persentasie | C8: 15%
B9: Speen Persentasie | C9: 70%
B10: Speen Gewig (Kg) | C10: 200
B11: Speenkalf Prys (R/kg) | C11: R 17.00
B12: Uitskot Koeie Karkas Gewig (Kg) | C12: 250
B13: Graad C Karkas Pys (R/kg) | C13: R 23.50
B15: Lek en Voer Gegewens
B16: Winterlek
B17: Aankoop Grootte (bv. 50 kg) | C17: 50
B18: Aankoop Prys (R) | C18: R 143
B19: Inname (kg/dier/dag) | C19: 0.5
B20: Tydperk (Dae) | C20: 180
B22: Somerlek
B23: Aankoop Grootte (bv. 50 kg) | C23: 25
B24: Aankoop Prys (R) | C24: R 106
B25: Inname (kg/dier/dag) | C25: 0.15
B26: Tydperk (Dae) | C26: 180
B28: Kruipvoer
B29: Bestandeel 1 Hoeveelheid (kg) | C29: 700
B30: Bestandeel 1 Prys (R/50kg) | C30: R 88
B31: Bestandeel 2 Hoeveelheid (kg) | C31: 200
B32: Bestandeel 2 Prys (R/50kg) | C32: R 181
B33: Bestandeel 3 Hoeveelheid (kg) | C33: 100
B34: Bestandeel 3 Prys (R/50kg) | C34: R 253
B35: Bestandeel 4 Hoeveelheid (kg)
B36: Bestandeel 4 Prys (R/50kg)
B37: Inname (kg/dier/dag) | C37: 2.8
B38: Tydperk (Dae) | C38: 120
B40: Doseer en Ent Gegewens
B41: Medikament 1 Hoveelheid (Dosisse/bottel) | C41: 100
B42: Medikament 1 Prys (R/bottel) | C42: R 1,972
B43: Medikament 2 Hoveelheid (Dosisse/bottel) | C43: 100
B44: Medikament 2 Prys (R/bottel) | C44: R 825
B45: Medikament 3 Hoveelheid (Dosisse/bottel) | C45: 100
B46: Medikament 3 Prys (R/bottel) | C46: R 960
B47: Medikament 4 Hoveelheid (Dosisse/bottel) | C47: 100
B48: Medikament 4 Prys (R/bottel) | C48: R 138
B49: Medikament 5 Hoveelheid (Dosisse/bottel) | C49: 100
B50: Medikament 5 Prys (R/bottel) | C50: R 802
B51: Medikament 6 Hoveelheid (Dosisse/bottel) | C51: 100
B52: Medikament 6 Prys (R/bottel) | C52: R 445
B54: Ander Kostes en Inkomstes
B55: Arbeid Hoeveelheid (Aantal Werkers) | C55: 2
B56: Arbeid Prys (R/Arbeider/Maand) | C56: R 1,376
B57: Oorhoofse Koste (% van Tot. Veranderlike Kostes) | C57: 10%
B58: Ander Inkomste | C58: R 0.00
B60: Vaste Koste | E60: "Click" op Marges om u na die Koste en Marge berekenings te neem
B61: Huur/Verband Koste (R/ha/jaar) | C61: R 300
B62: Drakrag (ha/GVE) | C62: 4
B64: Marges

Sheet Berekeninge (hidden)
A1: Produksie kostes - Bees
A3: Fisiese Gegewens | G3: Doseer en Ent Kostes | P3: Koste/Kg | Q3: Marge/kg | R3: Verandering
A4: Aantal Beeste | C4: =C6+C7+C8+C9 -> 133 | H4: Dosisse | I4: Per bees | J4: Prys per bottel | N4: Basis | O4: Nuwe | P4: R 7.52 | Q4: R 9.48 | R4: 0
G5: Dectovax | H5: =Invoere!C41 -> 100 | I5: =J5/H5 -> R 19.72 | J5: =Invoere!C42 -> R 1,972 | M5: Koeie | N5: 100 | O5: 200 | P5: R 5.87 | Q5: R 11.13 | R5: =$P$4-P5 -> R 1.65
A6: Produktiewe Koeie | C6: =Invoere!C6 -> 100 | G6: OneShot Ultra 7 | H6: =Invoere!C43 -> 100 | I6: =J6/H6 -> R 8.25 | J6: =Invoere!C44 -> R 825 | M6: Speen % | N6: 70 | O6: 80 | P6: R 7.11 | Q6: R 9.89 | R6: =$P$4-P6 -> R 0.41
A7: Verse by bul | B7: =Invoere!C8 -> 15% | C7: =C6*B7 -> 15 | G7: Chlamysure | H7: =Invoere!C45 -> 100 | I7: R 9.60 | J7: =Invoere!C46 -> R 960 | M7: Speen Kg | N7: 200 | O7: 220 | P7: R 6.84 | Q7: R 10.16 | R7: =$P$4-P7 -> R 0.68
A8: Jong verse | B8: =Invoere!C8 -> 15% | C8: =C6*B8 -> 15 | G8: Miltsiek | H8: =Invoere!C47 -> 100 | I8: R 1.38 | J8: =Invoere!C48 -> R 138 | M8: Kruipvoer | N8: Ja | O8: Nee | P8: R 1.72 | Q8: R 15.28 | R8: =$P$4-P8 -> R 5.80
A9: Bulle | B9: =Invoere!C7 -> 3% | C9: =C6*B9 -> 3 | G9: Lumpyvax | H9: =Invoere!C49 -> 100 | I9: R 8.02 | J9: =Invoere!C50 -> R 802 | M9: Arbeid | N9: 2 | O9: 1 | P9: R 5.87 | Q9: R 11.13 | R9: =$P$4-P9 -> R 1.65
G10: Slenkdal | H10: =Invoere!C51 -> 100 | I10: R 4.45 | J10: =Invoere!C52 -> R 445
A11: Kalwers gespeen | B11: =Invoere!C9 -> 70% | C11: =C6*B11 -> 70 | G11: Koste/Bees | I11: =SUM(I5:I10) -> R 51.42
A12: Kalwers Bemark | C12: =C11-(B7*C6) -> 55
A13: Speengewig | B13: kg | C13: =Invoere!C10 -> 200 | G13: Ander Kostes En Inkostes | M13: Vaste Koste
H14: Werkers | I14: Arbeid/Jaar | J14: Werker/Maand | M14: Huur/Verband koste (R/ha/jaar) | O14: =Invoere!C61 -> R 300.00
A15: Uitskot Koeie | B15: =Invoere!C8 -> 15% | C15: =C6*B15 -> 15 | G15: Arbeid | H15: =Invoere!C55 -> 2 | I15: =(J15*H15)*12 -> R 33,024 | J15: =Invoere!C56 -> R 1,376
A16: Karkas gewig | B16: kg | C16: =Invoere!C12 -> 250 | M16: Drakrag (ha/GVE) | O16: =Invoere!C62 -> 4
H17: % van Tot | I17: Tot/Jaar | M17: Weiding Benodig | O17: =O16*C4 -> 532
A18: Lek en Voer Kostes | G18: Oorhoofs | H18: =Invoere!C57 -> 10% | I18: =((C25*C4)+(C45*C11)+((C4+C11)*I11)+I15)*(10/100) -> R 13,560
A19: Winterlek | B19: Hoeveelheid | C19: Koste | D19: R/50kg | G19: Ander Inkomstes | I19: =Invoere!C58 -> R 0.00 | M19: Koste Per Jaar | O19: =O14*O17 -> R 159,600
A20: Premix 450 | B20: =Invoere!C17 -> 50 | C20: =D20 -> R 143 | D20: =Invoere!C18 -> R 143 | G20: Totaal | I20: =I15+I18-I19 -> R 46,584
A21: Koste | B21: R/kg | C21: =C20/B20 -> R 2.86
G22: Totale Kostes | M22: Finale Marge
A23: Inname | B23: kg/dier/dag | C23: =Invoere!C19 -> 0.5 | G23: Lek en Voer | I23: =(C35*(C4+C15))+(C45*C11) -> R 112,944 | M23: Inkomste | O23: =I40 -> R 187,000.00
A24: Tydperk | B24: Dae | C24: =Invoere!C20 -> 180 | G24: Doseer en Ent | I24: =I11*(C4+C11+C15) -> R 11,210
A25: Koste/dier | C25: =C21*C23*C24 -> R 257.40 | G25: Ander | I25: =I20 -> R 46,584 | M25: Veranderlike Kostes (Na Uitskot Koeie) | O25: =I44 -> R 82,613
G26: Totaal | I26: =SUM(I23:I25) -> R 170,738
A27: Somerlek | B27: Hoeveelheid | C27: Koste | D27: R/25kg | M27: Vaste Koste | O27: =O19 -> R 159,600
A28: Fosfaatblok | B28: =Invoere!C23 -> 25 | C28: =D28 -> R 106 | D28: =Invoere!C24 -> R 106 | G28: Per Bemarkte Kalf | I28: =I26/C12 -> R 3,104.33
A29: Koste | B29: R/kg | C29: =C28/B28 -> R 4.24 | G29: Per Bemarkte Kg | I29: =I28/C13 -> R 15.52 | M29: Finale Marge | O29: =O23-O25-O27 -> R -55,213.31
M30: Per kalf | O30: =O29/C12 -> R -1,003.88
A31: Inname | B31: kg/dier/dag | C31: =Invoere!C25 -> 0.15 | G31: Min: Uitskot Koeie | M31: Per kg | O31: =O30/C13 -> R -5.02
A32: Tydperk | B32: Dae | C32: =Invoere!C26 -> 180 | G32: R/kg | H32: =Invoere!C13 -> R 23.50 | I32: =C15*C16*H32 -> R 88,125
A33: Koste/dier | C33: =C29*C31*C32 -> R 114.48
G34: Totaal per kalf | I34: =(I26-I32)/C12 -> R 1,502.06
A35: Totale lek / dier | C35: =C25+C33 -> R 371.88 | G35: Totaal per kg | I35: =I34/C13 -> R 7.51
A37: Kruipvoer | B37: Hoeveelheid | C37: Koste | D37: R/50kg | G37: Marge (Slegs Veranderlike Kostes)
A38: Mielies | B38: =Invoere!C29 -> 700 | C38: =(D38/50)*B38 -> R 1,232 | D38: =Invoere!C30 -> R 88 | G38: Inkomste
A39: SS 200 | B39: =Invoere!C31 -> 200 | C39: =(D39/50)*B39 -> R 724 | D39: =Invoere!C32 -> R 181 | G39: Kalwers Bemark
A40: Procon 33 | B40: =Invoere!C33 -> 100 | C40: R 506 | D40: =Invoere!C34 -> R 253 | G40: R/kg | H40: =Invoere!C11 -> R 17.00 | I40: =H40*C12*C13 -> R 187,000.00
A41: Koste | B41: R/kg | C41: =SUM(C38:C40)/SUM(B38:B40) -> R 2.46 | G41: Per Kalf | I41: =I40/C12 -> R 3,400.00
A43: Inname | B43: kg/dier/dag | C43: =Invoere!C37 -> 2.8 | G43: Kostes
A44: Tydperk | B44: Dae | C44: =Invoere!C38 -> 120 | G44: Na Uitskot Koeie | I44: =I26-I32 -> R 82,613
A45: Koste/kalf | C45: =C41*C43*C44 -> R 827.23
G46: Bruto Marge | I46: =I40-I44 -> R 104,386.69
G47: Marge/Bermarkte kalf | I47: =I46/C12 -> R 1,897.94
G48: Marge/Bermarkte Kg | I48: =I47/C13 -> R 9.49

Sheet Marges
B2: Kostes en Marges
B5: Fisiese Afvoere | E5: Al die betrokke waardes is berekenings en moet dus nie verander word nie
B6: Produktiewe Koeie | C6: =Berekeninge!C6 -> 100
B7: Verse by bul | C7: =Berekeninge!C7 -> 15
B8: Jong Verse | C8: =Berekeninge!C8 -> 15
B9: Bulle | C9: =Berekeninge!C9 -> 3
B10: Totale Aantal Bees | C10: =Berekeninge!C4 -> 133
B11: Kalwers Gespeen | C11: =Berekeninge!C11 -> 70
B12: Kalwers Bemark | C12: =Berekeninge!C12 -> 55
B13: Uitskot Koeie | C13: =Berekeninge!C15 -> 15
B15: Lek en Voer Afvoere
B16: Winterlek Koste (R/kg) | C16: =Berekeninge!C21 -> R 2.86
B17: Winterlek Koste (R/Dier) | C17: =Berekeninge!C25 -> R 257.40
B18: Somerlek Koste (R/kg) | C18: =Berekeninge!C29 -> R 4.24
B19: Somerlek Koste (R/Dier) | C19: =Berekeninge!C33 -> R 114.48
B20: Kruipvoer Koste (R/kg) | C20: =Berekeninge!C41 -> R 2.46
B21: Kruipvoer Koste (R/Kalf) | C21: =Berekeninge!C45 -> R 827.23
B23: Doseer en Ent Afvoere
B24: Medikament 1 (R/Dier) | C24: =Berekeninge!I5 -> R 19.72
B25: Medikament 2 (R/Dier) | C25: =Berekeninge!I6 -> R 8.25
B26: Medikament 3 (R/Dier) | C26: =Berekeninge!I7 -> R 9.60
B27: Medikament 4 (R/Dier) | C27: =Berekeninge!I8 -> R 1.38
B28: Medikament 5 (R/Dier) | C28: =Berekeninge!I9 -> R 8.02
B29: Medikament 6 (R/Dier) | C29: =Berekeninge!I10 -> R 4.45
B30: Totaal Per Dier | C30: =Berekeninge!I11 -> R 51.42
B32: Ander Koste en Inkomste Afvoere
B33: Arbeid per Jaar | C33: =Berekeninge!I15 -> R 33,024
B34: Oorhoofs per Jaar | C34: =Berekeninge!I18 -> R 13,560
B35: Ander Inkomstes | C35: =Berekeninge!I19 -> R 0
B37: Totale Veranderlike Kostes
B38: Lek en Voer | C38: =Berekeninge!I23 -> R 112,944
B39: Doseer en Ent | C39: =Berekeninge!I24 -> R 11,210
B40: Ander | C40: =Berekeninge!I25 -> R 46,584
B41: Totaal | C41: =Berekeninge!I26 -> R 170,738
B42: Totaal / Bemarkte Kalf | C42: =Berekeninge!I28 -> R 3,104
B43: Totaal / Bemarkte Kg | C43: =Berekeninge!I29 -> R 15.52
B45: Min: Uitskot Koeie | C45: =Berekeninge!I32 -> R 88,125
B47: Totaal / Kalf | C47: =Berekeninge!I34 -> R 1,502
B48: Totaal / Kg | C48: =Berekeninge!I35 -> R 7.51
B50: Marge voor Vaste Koste
B51: Inkomste
B52: Totale Kalwers Bemark | C52: =Berekeninge!I40 -> R 187,000.00
B53: Inkomste / Kalf | C53: =Berekeninge!I41 -> R 3,400.00
B55: Min: Kostes
B56: Na Uitskot Koeie | C56: =Berekeninge!I44 -> R 82,613
B58: Bruto Marge | C58: =Berekeninge!I46 -> R 104,387
B59: Bruto Marge/Bemarkte Kalf | C59: =Berekeninge!I47 -> R 1,897.94
B60: Bruto Marge/Bemarkte Kg | C60: =Berekeninge!I48 -> R 9.49
B62: Vaste Koste
B63: Weiding Benodig (Ha) | C63: =Berekeninge!O17 -> 532
B64: Huur/Verband Koste per Jaar | C64: =Berekeninge!O19 -> R 159,600
B66: Netto Marge
B67: Bruto Marge | C67: =Berekeninge!I46 -> R 104,387
B69: Min: Vaste Koste | C69: =Berekeninge!O19 -> R 159,600.00
B71: Netto Marge | C71: =Berekeninge!O29 -> R -55,213.31 | E71: "Click" op Invoere indien u van die Invoere wil verander
B72: Netto Marge/Bemarkbare Kalf | C72: =Berekeninge!O30 -> R -1,003.88
B73: Netto Marge/Bemarkbare Kg | C73: =Berekeninge!O31 -> R -5.02
B75: Invoere
